bitfinex/quotes_ETHUSD_20241104
["timestamp","ask_amount","ask_price","bid_price","bid_amount"]
[1730729451250,4.13733172,2460.7,2460.3,4.87609]
[1730729451668,4.0641,2460.6,2460.3,0.8117]
[1730729451950,4.13752178,2460.5,2460.3,0.8117]
[1730729452281,0.07330178,2460.5,2460.4,0.23126217]
[1730729452477,4.06416,2460.6,2460.4,0.23126217]
[1730729452677,0.07320463,2460.5,2460.3,1.18164973]
[1730729452850,0.07320463,2460.5,2460.4,0.23120673]
[1730729453181,0.07320463,2460.5,2460.4,0.78120673]
[1730729454089,0.07320463,2460.5,2460.4,0.55]
[1730729454583,4.81595923,2460.5,2460.3,0.55]
[1730729454874,4.81595923,2460.5,2460.2,0.55]
[1730729455170,4.81595923,2460.5,2460.1,4.4346417]
[1730729455171,4.13741463,2460.5,2460.4,0.55]
[1730729455370,0.07320463,2460.5,2460.2,4.61467]
[1730729455669,0.07320463,2460.5,2460.4,0.55]
[1730729455977,0.07320463,2460.5,2460.3,4.61444]
[1730729456155,0.07320463,2460.5,2460.4,0.99850819]
[1730729456467,4.89994293,2460.8,2460.5,0.55]
[1730729456676,4.89972293,2460.9,2460.5,4.61411]
[1730729457033,0.83613293,2460.9,2460.6,4.06396]
[1730729457351,4.89952293,2461.0,2460.7,0.55]
[1730729457553,6.22875127,2461.0,2460.7,0.55]
[1730729457736,0.83613293,2460.9,2460.7,0.55]
[1730729457931,6.22875127,2461.0,2460.7,0.55]
[1730729458177,0.83613293,2460.9,2460.5,0.55]
[1730729458377,4.89962293,2461.0,2460.7,0.55]
[1730729459848,5.3175394,2461.1,2460.5,0.55]
[1730729459849,4.06379,2460.8,2460.5,0.55]
[1730729460267,4.06392,2460.7,2460.5,0.55]
[1730729460576,4.04392,2460.7,2460.5,0.55]
[1730729461154,4.06413,2460.6,2460.4,0.55]
[1730729461392,4.06413,2460.6,2460.3,0.55]
[1730729461685,4.06413,2460.6,2460.5,0.55]
[1730729462227,4.06413,2460.6,2460.3,0.55]
[1730729462357,4.06413,2460.6,2460.5,0.55]
[1730729462683,5.26895866,2460.6,2460.3,0.55]
[1730729462882,5.26895866,2460.6,2460.5,0.55]
[1730729463394,4.06407,2460.6,2460.3,0.55]
[1730729463593,4.06407,2460.6,2460.5,0.55]
[1730729463946,4.06407,2460.6,2460.3,0.55]
[1730729464191,4.06407,2460.6,2460.5,0.55]
[1730729464548,4.06407,2460.6,2460.3,0.55]
[1730729464762,8.1279,2460.7,2460.5,0.55]
[1730729464966,9.14972323,2460.7,2460.5,0.55]
[1730729465295,9.14972323,2460.7,2460.4,0.55]
[1730729465665,5.08570323,2460.7,2460.4,0.55]
[1730729465869,4.13721007,2460.6,2460.3,0.55]
[1730729466087,4.13721007,2460.6,2460.4,0.2312019]
[1730729466325,4.06437,2460.4,2460.3,0.55]
[1730729466473,4.13750181,2460.4,2460.3,0.23121178]
[1730729466666,0.07313181,2460.4,2460.3,0.23121178]
[1730729467118,4.06414,2460.6,2460.3,0.23121178]
[1730729467415,0.07300385,2460.5,2460.4,0.23121178]
[1730729467919,4.13721385,2460.5,2460.4,0.55]
[1730729468277,4.13721385,2460.5,2460.2,0.55]
[1730729468476,4.06446,2460.4,2460.3,0.7811823]
[1730729468678,4.13737672,2460.4,2460.3,0.7811823]
[1730729470301,4.13737672,2460.4,2460.3,0.55]
[1730729470507,4.13737672,2460.4,2460.2,0.55]
[1730729470825,0.07291672,2460.4,2460.3,0.78117679]
[1730729471327,4.00181193,2460.5,2460.4,0.55]
[1730729471524,1.59593293,2460.7,2460.3,0.55]
[1730729471680,4.06406,2460.6,2460.3,0.55]
[1730729472027,4.06429,2460.5,2460.2,0.55]
[1730729472191,4.06429,2460.5,2460.4,0.55]
[1730729472691,4.06429,2460.5,2460.2,0.55]
[1730729472897,4.06429,2460.5,2460.4,0.55]
[1730729473093,0.83613293,2460.7,2460.3,0.7882]
[1730729473296,4.89997293,2460.8,2460.4,4.84539576]
[1730729473513,4.89997293,2460.8,2460.5,0.23112882]
[1730729473717,4.89997293,2460.8,2460.6,0.55]
[1730729473884,0.83613293,2460.7,2460.4,4.06426]
[1730729474084,4.89997293,2460.8,2460.5,0.55]
[1730729474324,1.61673293,2460.7,2460.6,0.55]
[1730729474522,4.89985293,2460.8,2460.7,0.55]
[1730729474786,4.89985293,2460.8,2460.5,0.55]
[1730729475425,4.90007293,2460.7,2460.5,0.55]
[1730729475590,5.72087293,2460.6,2460.5,0.55]
[1730729475787,4.06431,2460.5,2460.4,0.55]
[1730729476006,4.06462,2460.3,2460.0,0.42150827]
[1730729476206,4.06462,2460.3,2460.1,0.23122946]
[1730729476406,4.06462,2460.3,2460.2,0.23122946]
[1730729476601,4.85036038,2460.3,2460.2,0.23122946]
[1730729477019,0.78574038,2460.3,2460.0,0.42150827]
[1730729477221,4.06463,2460.3,2459.9,4.06517]
[1730729477419,4.06463,2460.3,2460.1,0.23126264]
[1730729477738,4.06463,2460.3,2460.2,0.23126264]
[1730729477934,4.06471,2460.2,2459.8,4.86964]
[1730729478139,0.83613293,2460.4,2459.9,0.60139144]
[1730729478344,4.06504,2460.0,2459.8,0.55]
[1730729478541,4.06504,2460.0,2459.9,0.78133735]
[1730729478896,4.06504,2460.0,2459.9,0.23133735]
[1730729479098,0.83613293,2460.0,2459.7,0.0614935]
[1730729479402,8.13052,2459.9,2459.7,0.0614935]
[1730729479619,4.0652,2459.9,2459.8,0.23131777]
[1730729479812,4.06537,2459.8,2459.7,0.0614935]
[1730729480014,4.06537,2459.8,2459.7,0.29281554]
[1730729480854,4.06537,2459.8,2459.7,0.0614935]
[1730729481055,6.29174169,2459.8,2459.7,0.0614935]
[1730729481260,7.46480816,2459.8,2459.7,0.0614935]
[1730729481464,14.77453977,2459.8,2459.7,0.0614935]
[1730729481609,10.90486502,2459.8,2459.7,0.0614935]
[1730729482359,10.480519,2459.8,2459.7,0.0614935]
[1730729482756,8.80254229,2459.8,2459.7,0.0614935]
[1730729482959,10.48061944,2459.8,2459.7,0.0614935]
[1730729483286,10.47961408,2459.8,2459.7,0.0614935]
[1730729484148,10.05974663,2459.8,2459.7,0.0614935]
[1730729484542,17.67221704,2459.8,2459.7,0.0614935]
[1730729484871,18.92937526,2459.8,2459.7,0.0614935]
[1730729485054,15.05970051,2459.8,2459.7,0.0614935]
[1730729485378,6.63029669,2459.8,2459.7,0.0614935]
[1730729485536,4.82037,2459.8,2459.7,0.0614935]
[1730729487553,4.06537,2459.8,2459.7,0.6114935]
[1730729489970,4.06522,2459.9,2459.8,0.55]
[1730729491529,4.06537,2459.8,2459.7,0.0614935]
[1730729491729,4.06537,2459.8,2459.7,0.6114935]
[1730729491929,5.284936,2459.8,2459.7,0.6114935]
[1730729492353,5.284936,2459.8,2459.7,0.0614935]
[1730729493284,6.075036,2459.8,2459.7,0.0614935]
[1730729495044,9.075036,2459.8,2459.7,0.0614935]
[1730729495936,14.15263524,2459.8,2459.7,0.0614935]
[1730729496143,9.14263524,2459.8,2459.7,0.0614935]
[1730729498254,6.14263524,2459.8,2459.7,0.0614935]
[1730729499144,4.13296924,2459.8,2459.7,0.0614935]
[1730729499374,4.13296924,2459.8,2459.7,0.6114935]
[1730729499986,4.13296924,2459.8,2459.7,0.0614935]
[1730729502444,4.13296924,2459.8,2459.7,0.6114935]
[1730729503187,4.13296924,2459.8,2459.7,1.3799935]
[1730729503188,0.06759924,2459.8,2459.7,1.3799935]
[1730729503373,0.06759924,2459.8,2459.7,5.4455235]
[1730729503597,4.06494,2460.1,2459.7,5.4455235]
[1730729503908,4.06494,2460.1,2459.8,0.55]
[1730729504076,4.06474,2460.2,2459.8,4.61533]
[1730729504407,4.06439,2460.4,2459.8,4.61525]
[1730729504577,4.06439,2460.4,2460.1,0.55]
[1730729504777,4.06411,2460.6,2460.1,4.61481]
[1730729504981,4.06411,2460.6,2460.3,1.3633]
[1730729505915,1.93758863,2460.8,2460.3,5.42777]
[1730729505916,4.06396,2460.7,2460.3,5.42777]
[1730729506269,4.06373,2460.8,2460.5,0.55]
[1730729506500,4.06397,2460.7,2460.5,0.55]
[1730729506671,4.06383,2460.8,2460.4,0.55]
[1730729507361,0.8377544,2460.9,2460.4,0.55]
[1730729507483,4.06421,2460.5,2460.4,0.55]
[1730729508223,4.06407,2460.6,2460.4,0.55]
[1730729508967,4.064,2460.7,2460.4,0.55]
[1730729509208,4.06382,2460.8,2460.4,0.55]
[1730729509512,4.06407,2460.6,2460.4,0.55]
[1730729509685,4.0639,2460.7,2460.4,0.55]
[1730729510297,8.12788,2460.7,2460.4,0.55]
[1730729510673,4.0639,2460.7,2460.4,0.55]
[1730729510874,0.06376242,2460.6,2460.4,0.55]
[1730729513617,4.12785242,2460.6,2460.4,0.55]
[1730729514314,0.06376242,2460.6,2460.4,0.55]
[1730729514974,4.12783242,2460.6,2460.4,0.55]
[1730729515476,0.06376242,2460.6,2460.5,5.37001]
[1730729515779,4.06346,2461.0,2460.6,0.55]
[1730729516132,0.05560803,2460.9,2460.8,4.61371]
[1730729516579,4.06319,2461.2,2460.9,0.55]
[1730729516776,4.06326,2461.1,2460.8,0.55]
[1730729517074,4.06294,2461.3,2461.0,0.55]
[1730729517283,4.9004444,2461.5,2461.0,4.61336]
[1730729517463,4.06296,2461.3,2461.2,0.55]
[1730729518989,4.06274,2461.4,2461.2,0.55]
[1730729519167,8.12562,2461.4,2461.2,0.55]
[1730729519490,4.06289,2461.3,2461.2,0.55]
[1730729520498,4.06342,2461.0,2460.7,0.8101]
[1730729520785,4.06323,2461.1,2460.7,4.87397]
[1730729521492,4.06339,2461.0,2460.7,0.8101]
[1730729521682,8.1269,2461.0,2460.8,0.55]
[1730729521861,4.06341,2461.0,2460.8,0.55]
[1730729522193,4.06355,2460.9,2460.8,0.55]
[1730729522485,4.876246,2460.9,2460.6,0.55]
[1730729522684,4.06355,2460.9,2460.6,0.55]
[1730729522891,4.06341,2461.0,2460.6,0.55]
[1730729523090,4.06341,2461.0,2460.6,4.61403]
[1730729523589,4.9006544,2461.3,2460.8,4.06361]
[1730729523797,0.8377544,2461.5,2460.9,5.17177475]
[1730729523996,4.06227,2461.7,2461.5,0.55]
[1730729524206,5.08420426,2461.7,2461.5,0.55]
[1730729525589,4.06239,2461.6,2461.5,0.55]
[1730729525916,4.11567927,2461.6,2461.5,0.55]
[1730729526789,4.11567927,2461.6,2461.1,4.06319]
[1730729526790,4.06289,2461.3,2461.1,0.55]
[1730729527173,4.88900927,2461.6,2460.7,0.7544]
[1730729527174,4.11638956,2461.2,2460.7,0.7544]
[1730729527368,4.06328,2461.1,2460.7,4.81825]
[1730729527671,4.11666358,2461.0,2460.7,0.7544]
[1730729528079,0.05327358,2461.0,2460.7,4.81826]
[1730729528284,4.06326,2461.1,2460.7,4.81826]
[1730729528485,0.05340594,2460.9,2460.8,0.55]
[1730729528680,4.06339,2461.0,2460.8,0.55]
[1730729528881,0.05314558,2460.9,2460.8,0.55]
[1730729529320,4.06307,2461.2,2460.8,4.61371]
[1730729529472,0.05324578,2460.9,2460.8,4.61371]
[1730729529809,4.06307,2461.2,2460.8,4.61371]
[1730729530321,4.11667597,2461.1,2460.8,0.55]
[1730729530615,4.93460057,2461.1,2460.8,0.55]
[1730729530984,0.87136057,2461.1,2460.8,4.61371]
[1730729531190,0.05338597,2461.1,2460.8,4.61371]
[1730729532016,0.05338597,2461.1,2460.8,0.55]
[1730729532514,0.05338597,2461.1,2460.8,4.6137]
[1730729532726,0.05338597,2461.1,2461.0,1.3466]
[1730729532922,0.05338597,2461.1,2461.0,5.40998]
[1730729533074,4.06238,2461.7,2461.0,5.40998]
[1730729533075,4.06235,2461.7,2461.2,4.06299]
[1730729533427,4.955837,2461.7,2461.3,4.61275]
[1730729533627,4.06199,2461.9,2461.5,1.3267]
[1730729533858,0.05335909,2461.6,2461.5,1.3267]
[1730729534002,4.06223,2461.7,2461.5,1.3267]
[1730729534201,0.05162452,2461.6,2461.5,1.3267]
[1730729534427,4.06208,2461.8,2461.5,1.3267]
[1730729534625,0.05162452,2461.6,2461.5,1.3267]
[1730729534913,4.06239,2461.6,2461.5,1.3267]
[1730729535116,4.92652987,2461.6,2461.2,0.55]
[1730729535324,4.06256,2461.5,2461.2,0.55]
[1730729535531,4.06289,2461.3,2461.2,0.55]
[1730729535853,0.05174932,2461.3,2461.0,4.61332]
[1730729536022,0.05174932,2461.3,2461.2,0.55]
[1730729536212,0.05174932,2461.3,2461.1,0.2306768]
[1730729536414,4.06259,2461.5,2461.0,4.61332]
[1730729536615,0.05185136,2461.4,2461.2,0.55]
[1730729536919,4.11458136,2461.4,2461.1,0.55]
[1730729537333,8.17746136,2461.4,2461.1,0.55]
[1730729537558,4.11458136,2461.4,2461.0,4.61337]
[1730729537867,4.6072857,2461.4,2461.0,0.55]
[1730729538176,4.06306,2461.2,2461.0,0.55]
[1730729538681,0.05172035,2461.1,2460.8,0.36966452]
[1730729538909,0.05172035,2461.1,2460.7,0.7767]
[1730729538910,4.06338,2461.0,2460.7,0.7767]
[1730729539185,0.05185144,2461.0,2460.8,0.23105667]
[1730729539347,0.05185144,2461.0,2460.7,0.7767]
[1730729539545,0.05185144,2461.0,2460.8,0.23110272]
[1730729539748,4.11528144,2461.0,2460.7,0.7767]
[1730729539998,4.11528144,2461.0,2460.8,0.55]
[1730729540770,0.05185144,2461.0,2460.8,0.55]
[1730729540975,0.05185144,2461.0,2460.8,4.61371]
[1730729541389,4.06291,2461.3,2461.0,0.55]
[1730729541770,4.06329,2461.1,2460.8,0.55]
[1730729543220,4.06313,2461.2,2460.8,4.61363]
[1730729543382,4.06291,2461.3,2461.0,0.55]
[1730729543581,0.7624,2461.5,2461.0,0.55]
[1730729543582,4.06306,2461.2,2461.0,0.55]
[1730729543781,4.06322,2461.1,2461.0,0.55]
[1730729544308,4.06306,2461.2,2460.8,4.61366]
[1730729544599,4.06306,2461.2,2461.0,0.55]
[1730729544801,1.75445066,2461.7,2461.2,0.55]
[1730729545033,4.06279,2461.4,2461.2,0.55]
[1730729545628,4.06289,2461.3,2461.2,0.55]
[1730729546110,4.06289,2461.3,2461.1,0.8213]
[1730729546111,4.0631,2461.2,2461.0,0.55]
[1730729546447,4.06289,2461.3,2461.0,0.55]
[1730729547511,4.06276,2461.4,2461.0,4.61337]
[1730729547822,4.06276,2461.4,2461.2,0.55]
[1730729548021,4.06276,2461.4,2461.0,4.61337]
[1730729548223,4.06276,2461.4,2461.0,0.55]
[1730729548442,4.06298,2461.3,2461.0,0.55]
[1730729550214,5.58419575,2461.4,2461.0,4.61338]
[1730729550410,4.06276,2461.4,2461.0,4.61338]
[1730729550610,4.06276,2461.4,2461.2,0.55]
[1730729550853,8.12558,2461.4,2461.2,0.55]
[1730729551031,8.12558,2461.4,2461.0,0.55]
[1730729551236,4.0629,2461.3,2461.2,0.55]
[1730729551621,4.06276,2461.4,2461.0,4.61337]
[1730729551830,0.8377544,2461.5,2461.3,0.8044]
[1730729552035,0.8377544,2461.7,2461.4,0.55]
[1730729552350,4.06256,2461.5,2461.2,0.55]
[1730729552605,4.06273,2461.4,2461.2,0.55]
[1730729552755,4.0632,2461.2,2461.0,0.55]
[1730729552954,4.0632,2461.2,2461.1,0.78152378]
[1730729553155,4.0632,2461.2,2461.1,0.55]
[1730729553353,4.11496568,2461.2,2461.1,0.23152325]
[1730729553593,0.05176568,2461.2,2461.1,0.78152325]
[1730729553974,8.12593,2461.3,2461.2,0.55]
[1730729554155,8.12593,2461.3,2461.0,0.55]
[1730729554357,8.12593,2461.3,2461.2,0.55]
[1730729554358,4.0629,2461.3,2461.2,0.55]
[1730729554755,4.0629,2461.3,2461.0,0.55]
[1730729555005,4.0629,2461.3,2460.9,0.8044]
[1730729555006,4.0629,2461.3,2461.2,0.55]
[1730729555554,4.06305,2461.2,2461.0,0.55]
[1730729555788,8.9639944,2461.2,2461.0,0.55]
[1730729555993,4.06305,2461.2,2461.0,0.55]
[1730729556160,4.9007344,2461.3,2461.0,0.55]
[1730729556996,4.06308,2461.2,2461.0,0.55]
[1730729557202,4.06322,2461.1,2461.0,0.55]
[1730729558216,0.8377544,2461.2,2461.0,0.55]
[1730729558809,4.9008244,2461.2,2461.0,0.55]
[1730729560802,4.06307,2461.2,2461.0,0.55]
[1730729561024,0.05186222,2461.1,2461.0,0.55]
[1730729561227,0.05186222,2461.1,2461.0,0.78163525]
[1730729561434,4.06322,2461.1,2461.0,0.78163525]
[1730729561700,4.92766318,2461.1,2461.0,0.55]
[1730729561947,4.92766318,2461.1,2460.8,0.55]
[1730729562300,0.05181518,2461.1,2460.9,0.23164265]
[1730729562549,0.05181518,2461.1,2460.8,4.61364]
[1730729562733,0.05181518,2461.1,2461.0,0.55]
[1730729563099,0.05181518,2461.1,2461.0,4.85908]
[1730729563448,4.06271,2461.5,2461.1,4.61321]
[1730729563663,4.06251,2461.6,2461.3,0.55]
[1730729563810,0.05141132,2461.4,2461.3,0.55]
[1730729564010,4.06251,2461.6,2461.3,0.78162568]
[1730729564348,0.05146876,2461.5,2461.4,5.59447779]
[1730729564642,4.06198,2461.9,2461.5,0.55]
[1730729564820,4.06198,2461.9,2461.5,4.61249]
[1730729565208,4.06206,2461.8,2461.7,0.55]
[1730729565516,4.955084,2461.8,2461.5,0.55]
[1730729565718,4.06206,2461.8,2461.5,0.55]
[1730729566211,0.8062,2462.0,2461.5,0.55]
[1730729566545,4.06217,2461.8,2461.5,0.55]
[1730729566756,4.06205,2461.9,2461.5,0.55]
[1730729566906,8.12408,2461.9,2461.5,0.55]
[1730729567306,4.06218,2461.8,2461.5,0.55]
[1730729568463,4.0623,2461.7,2461.5,0.55]
[1730729569278,4.06239,2461.6,2461.5,0.55]
[1730729569584,4.06272,2461.4,2461.3,0.55]
[1730729569783,4.06257,2461.5,2461.1,0.37036034]
[1730729569784,4.06262,2461.5,2461.1,0.37036034]
[1730729570080,4.06275,2461.4,2461.2,0.23146354]
[1730729570280,4.0626,2461.5,2461.3,0.23146354]
[1730729570488,4.0626,2461.5,2461.1,4.06322]
[1730729570682,4.0626,2461.5,2461.2,0.23146298]
[1730729570882,0.05122864,2461.4,2461.3,0.78146298]
[1730729571623,0.05122864,2461.4,2461.3,1.53606298]
[1730729573393,5.50830904,2461.4,2461.3,0.23146298]
[1730729573595,4.06305,2461.2,2461.0,0.41645094]
[1730729573921,0.05135749,2461.1,2461.0,0.41645094]
[1730729574122,0.05135749,2461.1,2461.0,0.64790649]
[1730729575025,0.05135749,2461.1,2461.0,1.19790649]
[1730729575322,0.05135749,2461.1,2461.0,0.78145555]
[1730729575708,4.52601824,2461.1,2461.0,0.23145555]
[1730729575909,4.52601824,2461.1,2460.8,0.41645217]
[1730729575910,4.06342,2461.0,2460.8,0.41645217]
[1730729576109,4.06355,2460.9,2460.8,0.41645217]
[1730729576427,4.06355,2460.9,2460.3,3.86967475]
[1730729576428,4.06391,2460.7,2460.4,1.14716289]
[1730729576629,4.06391,2460.7,2460.5,0.6018374]
[1730729576813,0.05098337,2460.6,2460.4,0.41656672]
[1730729577017,0.05098337,2460.6,2460.5,0.23149322]
[1730729578185,0.05098337,2460.6,2460.5,0.78149322]
[1730729580643,5.32681998,2460.9,2460.6,0.55]
[1730729580644,0.84210665,2460.9,2460.6,0.55]
[1730729580847,0.84210665,2460.9,2460.6,1.3535]
[1730729580848,4.90566665,2460.9,2460.6,1.3535]
[1730729580999,4.90566665,2460.9,2460.5,4.0642]
[1730729581000,4.06388,2460.7,2460.5,0.55]
[1730729581544,0.84210665,2460.8,2460.5,0.55]
[1730729581847,5.32685998,2460.9,2460.5,4.61412]
[1730729581848,4.90567665,2460.9,2460.5,4.61412]
[1730729582134,4.90567665,2460.9,2460.7,0.55]
[1730729582335,4.90567665,2460.9,2460.6,0.55]
[1730729583332,0.84210665,2461.0,2460.8,0.55]
[1730729584143,4.90533665,2461.1,2460.8,0.55]
[1730729584640,0.84210665,2461.1,2460.8,0.55]
[1730729584940,0.84210665,2461.2,2461.0,0.55]
[1730729585297,0.84210665,2461.2,2461.0,4.61335]
[1730729585747,1.26315998,2461.3,2461.0,4.61326]
[1730729585748,0.84210665,2461.3,2461.0,4.61326]
[1730729585927,0.04923576,2461.1,2461.0,4.61326]
[1730729586126,0.84210665,2461.3,2461.0,4.61326]
[1730729586303,5.32594998,2461.4,2461.0,4.61326]
[1730729586304,0.04923576,2461.1,2461.0,4.61326]
[1730729586498,0.84210665,2461.2,2461.0,4.61326]
[1730729586700,0.84210665,2461.3,2461.2,0.55]
[1730729588147,0.84210665,2461.4,2461.2,4.61305]
[1730729588443,0.84210665,2461.6,2461.2,4.61305]
[1730729588641,4.90433665,2461.7,2461.4,0.55]
[1730729589342,0.84210665,2461.7,2461.6,0.55]
[1730729590849,0.84210665,2461.7,2461.6,4.61239]
[1730729591053,0.84210665,2461.8,2461.7,4.61223]
[1730729591349,0.84210665,2462.0,2461.8,5.39656]
[1730729591553,0.84210665,2462.0,2461.9,4.6119]
[1730729591706,0.84210665,2462.2,2461.9,4.6119]
[1730729592546,0.84210665,2462.2,2462.1,0.55]
[1730729592753,0.84210665,2462.3,2462.1,4.61157]
[1730729592954,0.84210665,2462.3,2462.2,0.55]
[1730729593246,0.84210665,2462.3,2462.2,5.4424]
[1730729593448,0.84210665,2462.4,2462.3,4.61124]
[1730729593748,1.26315998,2462.6,2462.4,0.55]
[1730729593749,0.84210665,2462.6,2462.4,0.55]
[1730729594406,9.38425998,2462.8,2462.4,0.55]
[1730729594407,0.84210665,2462.7,2462.4,0.55]
[1730729594650,0.84210665,2462.7,2462.6,4.06074]
[1730729594848,0.84210665,2463.0,2462.9,4.61025]
[1730729595030,0.84210665,2463.2,2463.0,0.55]
[1730729595238,0.84210665,2463.3,2463.1,0.7759]
[1730729595551,0.84210665,2463.6,2463.2,4.60968]
[1730729595711,0.69299166,2463.6,2463.2,0.55]
[1730729595910,0.84210665,2463.7,2463.2,0.55]
[1730729595911,4.05959,2463.3,2463.2,0.55]
[1730729596448,4.05959,2463.3,2463.0,0.55]
[1730729596750,4.05917,2463.6,2463.0,0.63119826]
[1730729596950,4.05917,2463.6,2463.0,4.61007]
[1730729597247,4.05943,2463.4,2462.9,0.55]
[1730729597401,0.405943,2463.3,2462.9,0.55]
[1730729597600,0.405943,2463.3,2462.8,0.55]
[1730729597807,4.465613,2463.3,2463.1,0.55]
[1730729599113,0.405943,2463.3,2463.1,0.55]
[1730729599846,4.05944,2463.4,2463.1,0.55]
[1730729600457,4.05938,2463.5,2463.1,0.55]
[1730729600747,0.8029,2463.4,2463.0,0.55]
[1730729601047,4.10511765,2463.4,2463.0,0.55]
[1730729601350,0.04567765,2463.4,2463.0,4.61006]
[1730729602265,4.10510765,2463.4,2463.2,0.55]
[1730729602467,5.00422642,2463.4,2463.2,0.55]
[1730729602774,0.94479642,2463.4,2463.2,0.55]
[1730729603072,5.00427642,2463.4,2463.2,0.55]
[1730729603435,4.05959,2463.3,2463.2,0.55]
[1730729603874,4.1046516,2463.3,2463.2,0.55]
[1730729604081,5.01097664,2463.3,2463.2,0.55]
[1730729607472,4.05999,2463.1,2462.8,0.7606]
[1730729607672,4.05999,2463.1,2462.9,0.55]
[1730729607673,8.12003,2463.1,2462.9,0.55]
[1730729607833,4.1050701,2463.0,2462.9,0.55]
[1730729608029,4.1050701,2463.0,2462.6,4.06072]
[1730729608030,4.06025,2462.9,2462.6,0.55]
[1730729608250,4.06034,2462.9,2462.5,0.8252]
[1730729608531,0.04499861,2462.8,2462.5,0.8252]
[1730729609797,0.04499861,2462.8,2462.6,0.55]
[1730729611406,0.04369159,2462.8,2462.6,0.55]
[1730729611712,0.04369159,2462.8,2462.6,4.61065]
[1730729611880,4.05953,2463.4,2463.0,4.06002]
[1730729612086,0.04506001,2463.3,2463.1,0.55]
[1730729612284,8.1178,2463.8,2463.2,5.41883]
[1730729612483,0.04394985,2463.7,2463.3,4.60952]
[1730729612721,4.05921,2463.6,2463.3,0.55]
[1730729612916,4.10313752,2463.6,2463.3,0.55]
[1730729613084,4.05943,2463.4,2463.3,0.55]
[1730729613284,4.10328147,2463.4,2463.3,0.55]
[1730729613818,4.06008,2463.1,2462.8,0.55]
[1730729614128,0.04384985,2463.0,2462.8,0.55]
[1730729614270,4.06066,2462.7,2462.4,0.8021]
[1730729614476,0.04358039,2462.6,2462.4,0.8021]
[1730729614685,4.06058,2462.7,2462.4,0.8021]
[1730729614868,0.04358039,2462.6,2462.4,0.8021]
[1730729615501,4.06053,2462.8,2462.5,0.55]
[1730729615704,0.04341445,2462.5,2462.2,3.0]
[1730729615887,8.12194,2462.5,2462.1,1.22005257]
[1730729616088,0.8235,2463.0,2462.1,1.22005257]
[1730729616089,4.10462166,2462.4,2462.1,1.22005257]
[1730729616305,4.0614,2462.2,2462.1,0.41795257]
[1730729616692,4.10479618,2462.2,2462.1,0.41795257]
[1730729617092,0.04339618,2462.2,2462.1,0.41795257]
[1730729617297,4.06124,2462.3,2462.1,0.41795257]
[1730729617595,0.04339618,2462.2,2462.1,0.41795257]
[1730729617805,4.06124,2462.3,2462.1,0.41795257]
[1730729618021,4.06124,2462.3,2462.1,0.96795257]
[1730729618022,0.04331087,2462.2,2462.1,0.96795257]
[1730729618530,4.06124,2462.3,2462.2,0.55]
[1730729618895,4.10450266,2462.3,2462.2,0.55]
[1730729620026,0.04326266,2462.3,2462.2,0.55]
[1730729621434,4.10450266,2462.3,2462.2,0.78084301]
[1730729621645,4.0614,2462.2,2461.5,4.83375]
[1730729621849,4.06181,2462.0,2461.6,1.15023605]
[1730729622052,4.0619,2461.9,2461.7,0.60023605]
[1730729622342,4.10499965,2461.9,2461.8,0.23085315]
[1730729623247,4.10499965,2461.9,2461.7,0.55]
[1730729623596,0.04309965,2461.9,2461.7,0.55]
[1730729623854,4.06192,2461.9,2461.7,0.55]
[1730729624027,0.04292291,2461.8,2461.7,0.55]
[1730729624210,4.10498291,2461.8,2461.7,0.78072844]
[1730729624410,4.10498291,2461.8,2461.7,0.55]
[1730729624843,0.04292291,2461.8,2461.7,0.55]
[1730729625210,4.06174,2462.0,2461.7,0.55]
[1730729625401,0.04292291,2461.8,2461.7,0.55]
[1730729625603,4.06201,2461.9,2461.7,0.55]
[1730729625850,0.04292291,2461.8,2461.7,0.55]
[1730729629748,4.10498291,2461.8,2461.7,0.55]
[1730729630310,4.10498291,2461.8,2461.6,0.41830298]
[1730729630311,4.06223,2461.7,2461.6,0.41830298]
[1730729630514,4.10498291,2461.8,2461.6,0.41830298]
[1730729630736,0.04291631,2461.7,2461.6,0.96830298]
[1730729631033,4.06193,2461.9,2461.6,0.96830298]
[1730729631240,0.04291631,2461.7,2461.6,0.96830298]
[1730729631445,4.06193,2461.9,2461.6,0.96830298]
[1730729631648,0.04291631,2461.7,2461.6,0.96830298]
[1730729631833,4.06193,2461.9,2461.6,0.96830298]
[1730729632035,0.04283096,2461.7,2461.6,0.96830298]
[1730729632257,4.06191,2461.9,2461.6,0.96830298]
[1730729632468,0.04283096,2461.7,2461.6,0.96830298]
[1730729632763,4.10506096,2461.7,2461.6,0.41830298]
[1730729632921,4.51555506,2461.7,2461.6,0.41830298]
[1730729633616,4.06243,2461.6,2461.3,0.55]
[1730729633848,4.06243,2461.6,2461.3,0.96833426]
[1730729634056,0.04255897,2461.5,2461.3,0.96833426]
[1730729634254,0.04255897,2461.5,2461.3,1.1987462]
[1730729634460,0.04255897,2461.5,2461.3,5.2615862]
[1730729634674,4.06223,2461.7,2461.3,5.03117426]
[1730729634877,0.04249955,2461.4,2461.3,0.96833426]
[1730729635079,4.0624,2461.6,2461.3,0.96833426]
[1730729635310,0.04249955,2461.4,2461.3,0.96833426]
[1730729635433,8.1246,2461.7,2461.3,0.96833426]
[1730729635635,0.04249955,2461.4,2461.3,0.96833426]
[1730729635885,8.12458,2461.7,2461.3,0.96833426]
[1730729636066,0.04249955,2461.4,2461.3,5.26161395]
[1730729636382,4.06223,2461.7,2461.3,5.26161395]
[1730729636568,0.04249955,2461.4,2461.3,0.96833426]
[1730729636778,4.06223,2461.7,2461.3,5.03122426]
[1730729636937,0.04249955,2461.4,2461.3,5.03122426]
[1730729637137,0.04249955,2461.4,2461.3,5.26166555]